bitfinex/quotes_SOLUSD_20241209
["timestamp","ask_amount","ask_price","bid_price","bid_amount"]
[1733779096079,11.3461,220.34,220.12,0.68099589]
[1733779096225,9.98,220.37,220.03,0.68096971]
[1733779096554,11.3471,220.32,220.03,0.68096971]
[1733779096759,214.20592955,220.37,220.04,30.0]
[1733779096949,182.69191956,220.37,220.05,35.83747382]
[1733779097126,9.98,220.37,220.05,45.83747382]
[1733779097334,9.98,220.37,220.06,0.68113759]
[1733779097335,9.98,220.3,220.06,0.68113759]
[1733779097637,0.12549,220.27,220.02,0.68127721]
[1733779097837,0.12549,220.25,220.02,0.68127721]
[1733779098039,0.12549,220.24,220.02,0.68127721]
[1733779098237,0.12549,220.24,219.99,35.83747382]
[1733779098457,0.12549,220.24,220.03,35.83747382]
[1733779098637,20.0,220.27,220.04,0.68129288]
[1733779098958,0.12549,220.26,220.04,0.68129288]
[1733779099159,20.0,220.27,220.04,0.68129288]
[1733779099366,20.0,220.26,220.04,0.68129288]
[1733779099530,227.22963006,220.36,220.06,0.12549]
[1733779099743,227.22963006,220.36,220.01,20.0]
[1733779099744,5.40301722,220.35,220.07,0.68113807]
[1733779100242,9.98,220.27,219.96,0.68106695]
[1733779100439,9.98,220.23,219.96,0.68106695]
[1733779100661,0.12549,220.22,219.96,0.68106695]
[1733779100965,0.12549,220.22,219.96,36.51854077]
[1733779101163,20.0,220.21,219.98,35.83747382]
[1733779101366,0.12549,220.22,219.99,0.68137118]
[1733779101367,20.0,220.18,219.99,0.68137118]
[1733779101655,20.0,220.18,219.93,35.83747382]
[1733779101656,20.0,220.18,219.94,0.6813062]
[1733779101955,0.12549,220.17,219.94,0.6813062]
[1733779102153,20.0,220.18,219.95,35.83747382]
[1733779102358,20.0,220.18,220.0,35.83747382]
[1733779102561,11.3504,220.26,220.01,0.68128641]
[1733779102927,21.3304,220.26,220.01,0.68128641]
[1733779103140,297.22963006,220.37,220.01,0.68128641]
[1733779103141,5.41539985,220.29,220.06,35.83747382]
[1733779103364,5.41539985,220.31,220.07,0.68116101]
[1733779103533,5.41539985,220.33,220.07,0.68116101]
[1733779103736,11.3481,220.3,220.07,10.66116101]
[1733779103938,11.3481,220.3,220.07,0.68116101]
[1733779104372,11.3481,220.3,220.07,10.661161]
[1733779104373,9.98,220.29,220.07,10.661161]
[1733779104535,5.41539985,220.32,220.08,0.68137539]
[1733779104743,5.41539985,220.35,220.08,0.68137539]
[1733779105048,9.98,220.37,220.08,0.68137539]
[1733779105049,5.41539985,220.36,220.08,0.68137539]
[1733779105364,9.98,220.33,220.08,0.68137539]
[1733779105543,5.41539985,220.33,220.02,0.68108439]
[1733779105860,16.76249985,220.32,220.02,0.68108439]
[1733779106467,20.0,220.29,220.02,0.68108439]
[1733779106764,9.98,220.37,220.03,31.95659579]
[1733779106937,9.98,220.37,220.04,0.68128093]
[1733779107140,0.12549,220.32,220.04,0.68128093]
[1733779107468,0.12549,220.32,220.04,7.16178372]
[1733779107633,34.0383,220.34,220.04,0.68128093]
[1733779107831,44.0183,220.34,220.04,0.68128093]
[1733779108038,0.12549,220.31,220.04,0.68128093]
[1733779108262,9.98,220.3,220.02,0.68124106]
[1733779108470,9.98,220.3,219.89,7.7002]
[1733779108471,0.12549,220.16,219.93,0.68163063]
[1733779108640,20.12549,220.12,219.93,0.68163063]
[1733779108965,307.22963006,220.23,219.93,0.68163063]
[1733779108966,20.0,220.28,219.94,0.68184229]
[1733779109260,20.0,220.13,219.94,0.68184229]
[1733779109462,20.0,220.13,219.91,0.68177809]
[1733779109676,0.12549,220.08,219.87,0.68186972]
[1733779109874,0.12549,220.08,219.88,0.68180605]
[1733779110036,0.12549,220.08,219.87,12.8013]
[1733779110242,0.12549,220.08,219.81,28.04660232]
[1733779110243,2.04202826,220.08,219.81,28.04660232]
[1733779110462,20.0,220.06,219.82,18.200159]
[1733779110633,20.0,220.06,219.81,0.68210593]
[1733779111039,20.0,220.06,219.81,8.38230593]
[1733779111440,20.0,220.05,219.81,8.38230593]
[1733779111676,31.3614,220.05,219.81,0.68210593]
[1733779111844,9.98,220.13,219.88,35.83747382]
[1733779112041,9.98,220.25,219.89,0.68195508]
[1733779112242,9.98,220.17,219.89,0.68195508]
[1733779112453,307.20963006,220.24,219.89,0.68195508]
[1733779112760,9.98,220.18,219.85,35.83747382]
[1733779112950,0.85225796,220.17,219.81,54.03877982]
[1733779113145,0.12549,220.03,219.77,0.68177912]
[1733779113343,9.98,220.0,219.73,0.68220681]
[1733779113572,227.22963006,220.06,219.73,0.68220681]
[1733779113573,0.85292396,219.99,219.73,0.68220681]
[1733779113743,11.3646,219.98,219.73,0.68220681]
[1733779114077,11.3646,219.98,219.69,18.20988]
[1733779114078,20.0,219.92,219.69,18.20988]
[1733779114250,0.85286783,219.91,219.7,0.68229427]
[1733779114447,11.3646,219.98,219.7,0.68229427]
[1733779114448,0.85298486,219.94,219.7,10.68229427]
[1733779114659,23.776884,219.96,219.72,10.0]
[1733779114865,23.776884,219.94,219.73,0.68217204]
[1733779115170,0.85268346,220.02,219.76,35.83747382]
[1733779115350,0.85268346,220.02,219.77,0.68196784]
[1733779115549,0.85253823,220.08,219.83,35.83747382]
[1733779115757,0.8522362,220.12,219.86,20.0]
[1733779115954,0.8522362,220.12,219.9,20.0]
[1733779116169,0.85211357,220.11,219.94,0.12549]
[1733779116340,0.09425961,220.13,219.93,0.12549]
[1733779116544,0.09425961,220.13,219.98,35.96296382]
[1733779116741,0.09425961,220.13,219.99,0.68127377]
[1733779117037,0.09425961,220.13,219.93,0.68147175]
[1733779117243,11.3574,220.12,219.86,12.1001]
[1733779117456,0.85245014,220.11,219.83,0.68166397]
[1733779117664,11.48439,220.09,219.79,0.68196011]
[1733779117874,0.12549,220.07,219.79,0.68196011]
[1733779118076,11.3589,220.09,219.75,0.68204056]
[1733779118077,10.83255071,220.06,219.75,0.68204056]
[1733779118274,20.0,219.98,219.75,0.68204056]
[1733779118448,23.776884,220.01,219.72,12.78229494]
[1733779118449,20.0,219.86,219.72,12.78229494]
[1733779118646,0.85296736,219.85,219.64,0.68237389]
[1733779118876,0.85296736,219.85,219.67,18.207159]
[1733779119172,22.2937,220.03,219.61,7.8354]
[1733779119173,23.776884,219.89,219.68,0.68237771]
[1733779119344,23.776884,219.85,219.64,18.209869]
[1733779119547,22.3137,220.03,219.66,35.83747382]
[1733779119548,0.85313489,219.84,219.66,35.83747382]
[1733779119873,12.3137,220.03,219.64,18.209869]
[1733779119874,20.0,219.91,219.7,10.0]
[1733779120063,23.776884,219.86,219.7,0.68217299]
[1733779120243,0.85307113,219.85,219.65,0.6824569]
[1733779120452,0.12549,219.84,219.65,0.6824569]
[1733779120648,23.776884,219.8,219.65,0.6824569]
[1733779120851,0.85329355,219.79,219.65,0.6824569]
[1733779121261,0.85322489,219.8,219.62,0.68257991]
[1733779121451,23.776884,219.79,219.62,0.68257991]
[1733779121661,11.3694,219.89,219.57,0.7884272]
[1733779121662,23.776884,219.73,219.57,0.7884272]
[1733779121857,23.776884,219.69,219.57,0.7884272]
[1733779122088,0.85377148,219.68,219.57,0.7884272]
[1733779122244,20.0,219.69,219.57,0.7884272]
[1733779122446,0.85369099,219.71,219.57,0.7884272]
[1733779122750,20.0,219.71,219.57,0.7884272]
[1733779122950,0.85355327,219.77,219.58,0.68284261]
[1733779123148,20.0,219.73,219.57,0.7884272]
[1733779123363,0.85352571,219.72,219.57,0.7884272]
[1733779123570,0.85358697,219.75,219.58,0.68286958]
[1733779123870,23.776884,219.8,219.58,0.68286958]
[1733779124079,0.85334413,219.79,219.58,0.68286958]
[1733779124278,0.85322296,219.92,219.67,0.12549]
[1733779124485,227.22963006,220.02,219.65,0.6822222]
[1733779124486,21.3646,219.98,219.65,0.6822222]
[1733779124778,7.47593898,220.0,219.65,0.6822222]
[1733779124779,7.47593898,220.0,219.7,0.12549]
[1733779125080,11.3641,219.99,219.7,0.80780992]
[1733779125373,18.208673,219.99,219.74,45.96296382]
[1733779125576,18.208673,219.99,219.78,0.12549]
[1733779125875,2.01923804,220.13,219.78,0.12549]
[1733779125876,0.09425961,220.13,219.86,0.12549]
[1733779126090,0.09425961,220.13,219.89,20.0]
[1733779126285,0.09425961,220.13,219.91,0.12549]
[1733779126469,0.09425961,220.13,219.92,0.68151036]
[1733779126781,0.09425961,220.13,219.91,0.12549]
[1733779127190,0.09425961,220.13,219.91,0.25098]
[1733779127486,0.09425961,220.13,219.95,0.12549]
[1733779127689,0.09425961,220.13,219.97,0.25098]
[1733779127994,0.09425961,220.13,219.98,0.68140899]
[1733779128168,0.09425961,220.13,219.99,0.12549]
[1733779128494,0.09425961,220.13,219.94,12.8484]
[1733779128781,10.0,220.26,219.95,0.68143148]
[1733779128957,11.3509,220.25,219.95,0.68143148]
[1733779129158,257.77166806,220.29,219.96,0.12549]
[1733779129490,11.3491,220.28,219.98,0.25098]
[1733779129814,239.58743006,220.29,220.0,0.25098]
[1733779129957,34.0474,220.28,219.86,10.0]
[1733779130157,227.22963006,220.26,219.91,35.83747382]
[1733779130355,18.18543,220.27,220.0,35.83747382]
[1733779130583,12.8648,220.44,220.01,0.68117045]
[1733779130584,9.98,220.35,220.01,0.68117045]
[1733779130890,227.22963006,220.36,220.01,0.68117045]
[1733779130891,18.180673,220.33,220.01,0.68117045]
[1733779131689,0.12549,220.29,219.98,0.68131212]
[1733779131896,0.12549,220.2,219.88,0.68160363]
[1733779132264,10.0,220.14,219.81,0.68175587]
[1733779132573,20.0,220.05,219.75,0.68202325]
[1733779132891,23.776884,220.07,219.75,0.68202325]
[1733779132892,20.0,220.04,219.75,0.68202325]
[1733779133068,23.776884,220.03,219.75,0.68202325]
[1733779133261,20.0,220.0,219.75,0.68202325]
[1733779133465,227.22963006,220.08,219.77,10.0]
[1733779133691,20.0,220.05,219.78,36.51936769]
[1733779133888,20.0,220.05,219.78,0.68189387]
[1733779134095,43.776884,220.13,219.81,35.96296382]
[1733779134261,11.3555,220.16,219.83,35.83747382]
[1733779134461,10.0,220.19,219.87,35.83747382]
[1733779134462,1.84457223,220.19,219.87,35.83747382]
[1733779134768,34.0552,220.23,219.89,0.12549]
[1733779135088,34.0552,220.23,219.86,0.68174482]
[1733779135089,227.22963006,220.15,219.86,0.68174482]
[1733779135393,44.0552,220.23,219.88,0.68174482]
[1733779135689,11.3517,220.23,219.89,0.12549]
[1733779135860,11.3517,220.23,219.88,0.68174482]
[1733779136071,11.3517,220.23,219.89,0.12549]
[1733779136283,229.14408806,220.24,219.97,23.776884]
[1733779136487,229.14408806,220.24,219.95,23.776884]
[1733779136786,240.49528806,220.24,219.94,0.68149143]
[1733779136992,229.14408806,220.24,219.99,23.776884]
[1733779137339,229.14408806,220.24,220.01,23.776884]
[1733779137467,12.3651,220.3,220.01,23.776884]
[1733779137796,11.3486,220.29,220.03,23.776884]
[1733779138090,11.3486,220.29,219.94,0.6814758]
[1733779138091,11.3486,220.29,219.95,23.902374]
[1733779138397,11.3486,220.29,219.99,23.776884]
[1733779138573,11.3486,220.29,220.0,0.25098]
[1733779138760,11.3435,220.39,220.1,23.776884]
[1733779138965,11.3435,220.39,220.12,23.776884]
[1733779139266,9.98,220.42,220.02,10.0]
[1733779139267,18.176298,220.36,220.14,23.776884]
[1733779139469,227.60363006,220.43,220.16,23.776884]
[1733779139671,28.152552,220.42,220.18,23.776884]
[1733779139878,18.172552,220.42,220.18,23.776884]
[1733779140080,18.172552,220.42,220.2,23.776884]
[1733779140278,0.374,220.43,220.22,23.776884]
[1733779140485,0.374,220.43,220.18,23.776884]
[1733779140660,9.98,220.42,220.19,0.68089798]
[1733779140869,9.98,220.41,220.15,23.776884]
[1733779141103,9.98,220.39,220.06,0.68104286]
[1733779141301,9.98,220.39,220.08,18.176573]
[1733779141495,238.57153006,220.42,220.09,0.68111395]
[1733779141496,0.12549,220.38,220.09,0.68111395]
[1733779141705,9.98,220.41,220.01,19.9456]
[1733779141706,11.3445,220.37,220.03,0.12549]
[1733779141905,20.0,220.38,220.09,18.176324]
[1733779142108,9.98,220.43,220.1,0.68102103]
[1733779142323,250.39561609,220.43,220.12,0.12549]
[1733779142495,0.69893045,220.42,220.12,6.81583394]
[1733779142716,0.69893045,220.42,220.12,0.68102245]
[1733779142903,0.69893045,220.42,220.11,22.58325591]
[1733779143103,227.22963006,220.33,220.09,18.176324]
[1733779143294,0.69893045,220.32,220.04,0.68113293]
[1733779143501,20.0,220.3,220.05,18.176324]
[1733779143726,0.69893045,220.29,220.06,0.6811017]
[1733779144315,0.12549,220.28,220.06,0.6811017]
[1733779144518,0.25098,220.28,220.06,0.6811017]
[1733779144712,0.25098,220.26,220.06,0.6811017]
[1733779145015,31.3484,220.3,220.01,12.1662]
[1733779145016,0.12549,220.22,220.01,12.1662]
[1733779145199,0.12549,220.21,220.01,12.1662]
[1733779145403,0.69893045,220.2,220.01,12.1662]
[1733779145629,0.69893045,220.2,219.94,0.68136456]
[1733779145630,0.12549,220.16,219.94,0.68136456]
[1733779145841,0.12549,220.16,219.9,0.68149027]
[1733779145842,0.94991045,220.16,219.9,0.68149027]
[1733779146132,0.94991045,220.16,219.88,20.6739]
[1733779146133,20.25098,220.14,219.88,12.7707]
[1733779146322,0.69893045,220.13,219.89,36.519314]
[1733779146615,0.69893045,220.13,219.89,0.68184018]
[1733779146829,20.0,220.15,219.89,0.68184018]
[1733779147001,0.69893045,220.14,219.89,0.68184018]
[1733779147195,0.25098,220.13,219.89,0.68184018]
[1733779147402,0.25098,220.11,219.89,0.68184018]
[1733779147639,0.12549,220.06,219.88,12.7707]
[1733779147799,0.12549,220.05,219.88,12.7707]
[1733779148001,0.69893045,220.04,219.85,0.68195432]
[1733779148638,0.25098,220.03,219.83,0.681854]
[1733779148926,0.25098,220.01,219.8,0.2657945]
[1733779149097,0.12549,219.99,219.8,0.2657945]
[1733779149299,0.69893045,219.98,219.81,0.68225565]
[1733779149523,0.82442045,220.01,219.8,0.94782925]
[1733779149716,0.82442045,220.01,219.8,0.2657945]
[1733779149717,0.12549,220.0,219.8,0.2657945]
[1733779149917,0.69893045,219.99,219.8,0.2657945]
[1733779150115,0.69893045,219.99,219.8,0.94795941]
[1733779150302,9.98,220.03,219.8,0.2657945]
[1733779150511,1.86797289,220.07,219.8,0.2657945]
[1733779150512,0.12549,219.99,219.8,0.2657945]
[1733779150726,0.12549,219.97,219.8,0.2657945]
[1733779150920,0.69893045,219.96,219.8,0.2657945]
[1733779151130,0.69893045,220.03,219.82,35.83747382]
[1733779151314,11.3579,220.11,219.83,0.68192349]
[1733779151315,0.69893045,220.1,219.83,0.68192349]
[1733779151711,0.69893045,220.1,219.91,0.12549]
[1733779151906,227.22963006,220.24,219.92,35.83747382]
[1733779152230,12.04913045,220.26,219.84,80.0]
[1733779152231,0.69893045,220.23,219.96,35.83747382]
[1733779152403,0.69893045,220.23,219.98,0.12549]
[1733779152612,0.69893045,220.23,220.0,23.776884]
[1733779153048,9.98,220.21,220.0,23.776884]
[1733779153337,19.98,220.17,219.84,0.68177999]
[1733779153629,11.3615,220.04,219.8,0.2657945]
[1733779153837,0.12549,220.02,219.83,35.83747382]
[1733779154044,0.69893045,220.01,219.85,35.83747382]
[1733779154219,0.12549,220.07,219.87,35.83747382]
[1733779154407,0.69893045,220.06,219.89,35.83747382]
[1733779154606,0.69893045,220.13,219.87,35.83747382]
[1733779154832,0.69893045,220.13,219.82,35.83747382]
[1733779155014,23.902374,220.12,219.83,0.68199289]
[1733779155217,0.69893045,220.11,219.83,0.68199289]
[1733779155435,0.12549,220.1,219.83,0.68199289]
[1733779155642,0.69893045,220.09,219.86,35.83747382]
[1733779155938,11.3595,220.08,219.87,0.68189157]
[1733779156111,20.0,220.05,219.8,36.78515989]
[1733779156314,0.69893045,220.04,219.82,35.83747382]
[1733779156525,0.69893045,220.04,219.86,35.83747382]
[1733779156705,0.69893045,220.08,219.87,0.68183892]
[1733779156904,0.69893045,220.19,219.93,35.83747382]
[1733779157129,0.69893045,220.19,220.0,0.12549]
[1733779157344,1.82752572,220.24,220.0,0.68136914]
[1733779157544,10.69893045,220.23,219.93,0.6816283]
[1733779157720,10.69893045,220.23,219.94,0.68180727]
[1733779157721,11.3522,220.22,219.94,0.68180727]
[1733779157913,0.69893045,220.21,219.94,0.68180727]
[1733779158113,0.69893045,220.21,219.92,35.96296382]
[1733779158547,2.60671644,220.21,219.9,35.83747382]
[1733779158708,0.69893045,220.21,219.91,0.68170186]
[1733779159036,0.69893045,220.21,219.9,35.83747382]
[1733779159239,10.67893045,220.21,219.91,0.68169521]
[1733779159426,10.67893045,220.21,219.84,0.12549]
[1733779159427,0.69893045,220.21,219.96,35.83747382]
[1733779159621,0.69893045,220.21,219.97,0.68148316]
[1733779159832,0.69893045,220.21,219.99,0.25098]
[1733779160016,0.69893045,220.31,220.05,0.25098]
[1733779160219,0.69893045,220.31,220.09,0.25098]
[1733779160522,0.69893045,220.31,220.06,10.68112765]
[1733779160523,0.69893045,220.31,220.1,0.68094727]
[1733779160743,0.69893045,220.31,220.11,0.12549]
[1733779160951,0.69893045,220.31,220.12,0.68108384]
[1733779161235,0.69893045,220.31,220.12,0.68118935]
[1733779161538,0.69893045,220.31,220.07,6.37354008]
[1733779161711,0.69893045,220.34,220.07,0.68102094]
[1733779162020,11.348,220.31,220.03,0.68121748]
[1733779162350,10.12549,220.29,219.97,0.68136977]
[1733779162511,0.12549,220.25,219.9,0.68161527]
[1733779162711,227.22963006,220.27,219.87,27.98116075]
[1733779162712,12.77489,220.2,219.91,0.68164498]
[1733779162918,12.77489,220.2,219.87,35.83747382]
[1733779162919,0.12549,220.14,219.83,0.68180685]
[1733779163251,0.12549,220.12,219.85,35.83747382]
[1733779163426,0.12549,220.1,219.86,0.68187983]
[1733779163629,0.25098,220.08,219.82,0.6819621]
[1733779163827,20.0,220.04,219.83,0.68212826]
[1733779164027,0.69893045,220.03,219.84,0.68197188]
[1733779164336,0.12549,220.02,219.81,0.68201357]
[1733779164647,0.12549,220.0,219.82,0.68206082]
[1733779164847,0.69893045,220.0,219.83,0.6818126]
[1733779165143,36.517684,220.1,219.81,0.68195905]
[1733779165348,43.756884,220.08,219.8,0.2657945]
[1733779165515,0.69893045,220.07,219.83,35.83747382]
[1733779165716,11.3605,220.06,219.8,0.2657945]
[1733779166013,0.12549,220.04,219.8,0.2657945]
[1733779166213,0.25098,220.02,219.8,0.94802688]
[1733779166454,0.12549,220.0,219.8,0.2657945]
[1733779166652,34.0815,220.06,219.8,0.2657945]
[1733779166653,0.25098,219.98,219.8,0.2657945]
[1733779166830,0.69893045,219.97,219.8,0.2657945]
[1733779167142,34.0815,220.06,219.8,0.2657945]
[1733779167143,0.12549,220.01,219.8,0.2657945]
[1733779167346,0.12549,219.99,219.8,0.2657945]
[1733779167557,0.25098,219.97,219.8,0.2657945]
[1733779168156,0.12549,219.94,219.8,0.2657945]
[1733779168453,0.25098,219.92,219.8,0.2657945]
[1733779168621,0.12549,219.9,219.8,0.2657945]
[1733779168820,11.3657,219.96,219.8,0.2657945]
[1733779169015,0.69893045,219.95,219.8,0.2657945]
[1733779169242,79.98,220.0,219.8,0.2657945]
[1733779169453,0.12549,219.98,219.8,0.2657945]
[1733779169625,0.69893045,219.99,219.8,0.2657945]
[1733779169626,20.10549,219.96,219.8,0.2657945]
[1733779169819,0.12549,219.94,219.8,0.2657945]
[1733779170035,0.12549,219.92,219.8,0.2657945]
[1733779170347,11.3662,219.95,219.8,0.2657945]
[1733779170348,0.25098,219.9,219.8,0.2657945]
[1733779170555,0.69893045,219.89,219.8,0.2657945]
[1733779170922,0.69893045,219.94,219.8,0.2657945]
[1733779171849,11.3672,219.93,219.8,0.2657945]
[1733779172148,11.3672,219.93,219.58,13.1193]
[1733779172149,20.4393,219.89,219.54,35.83747382]
[1733779172448,0.12549,219.86,219.55,0.68277095]
[1733779172653,0.12549,219.83,219.56,35.83747382]
[1733779172833,0.82442045,219.83,219.57,0.68279273]
[1733779173048,0.82442045,219.83,219.59,0.12549]
[1733779173351,0.82442045,219.83,219.56,35.83747382]
[1733779173528,0.12549,219.82,219.57,0.68284202]
[1733779173865,0.12549,219.8,219.58,35.83747382]
[1733779174038,0.12549,219.8,219.57,0.68284202]
[1733779174039,20.0,219.76,219.57,0.68284202]
[1733779174225,20.0,219.76,219.53,0.7082327]
[1733779174226,24.027864,219.74,219.53,0.7082327]
[1733779174561,23.902374,219.66,219.53,0.7082327]
[1733779174758,20.0,219.61,219.53,0.7082327]
[1733779175062,0.79319006,219.6,219.53,0.7082327]
[1733779175631,0.79319006,219.6,219.29,18.23063]
[1733779175632,24.027864,219.59,219.23,12.8899]
[1733779175854,20.0,219.51,219.26,0.68366804]
[1733779176060,0.79319006,219.5,219.26,36.52114186]
[1733779176233,23.776884,219.54,219.26,0.68366804]
[1733779176553,0.25098,219.5,219.26,0.68366804]
[1733779176752,0.79319006,219.49,219.26,0.68366804]
[1733779176957,0.79319006,219.49,219.3,35.83747382]
[1733779177161,0.79319006,219.55,219.31,0.8090609]
[1733779177365,0.79319006,219.55,219.29,35.83747382]
[1733779177665,0.79319006,219.58,219.35,35.83747382]
[1733779177839,0.79319006,219.58,219.37,35.96296382]
[1733779178040,0.79319006,219.63,219.33,35.83747382]
[1733779178348,0.12549,219.62,219.34,0.68347039]
[1733779178540,0.79319006,219.61,219.37,35.83747382]
[1733779178760,0.79319006,219.61,219.4,0.12549]
[1733779179277,0.79319006,219.61,219.33,35.83747382]
[1733779179442,0.79319006,219.63,219.37,35.83747382]
[1733779179646,0.12549,219.62,219.33,35.83747382]
[1733779179844,11.50979,219.6,219.31,35.83747382]
[1733779180071,0.12549,219.56,219.32,0.68360629]
[1733779180269,0.12549,219.54,219.3,0.68368672]
[1733779180476,0.79319006,219.53,219.26,0.68378767]
[1733779180663,0.79319006,219.53,219.25,36.54570652]
[1733779180664,0.12549,219.49,219.25,0.7082327]
[1733779180865,0.12549,219.51,219.25,0.7082327]
[1733779180866,23.902374,219.42,219.25,0.7082327]
[1733779181057,20.0,219.43,219.25,0.7082327]
[1733779181058,0.79319006,219.41,219.25,0.7082327]
[1733779182171,12.2982,219.46,219.25,0.7082327]
[1733779182172,0.79319006,219.42,219.27,35.83747382]
[1733779182393,0.79319006,219.41,219.25,0.7082327]
[1733779182571,0.79319006,219.45,219.25,0.7082327]
[1733779183188,0.79319006,219.45,219.26,45.96296382]
[1733779183380,0.79319006,219.45,219.27,33.68747382]
[1733779183686,0.79319006,219.45,219.3,35.83747382]
[1733779183972,235.43153006,219.64,219.3,35.96296382]
[1733779183973,11.3827,219.63,219.3,35.96296382]
[1733779184182,11.3827,219.63,219.38,10.0]
[1733779184353,1.91469913,219.65,219.45,10.0]
[1733779184677,11.3781,219.72,219.5,23.776884]
[1733779184885,1.87843447,219.77,219.52,0.12549]
[1733779185052,227.22963006,219.83,219.5,23.776884]
[1733779185382,11.3733,219.82,219.5,23.776884]
[1733779185576,70.0,219.77,219.47,10.0]
[1733779185755,227.22963006,219.74,219.41,10.0]
[1733779186096,0.12549,219.72,219.41,10.3126501]
[1733779186471,20.0,219.7,219.41,10.3126501]
[1733779186664,24.027864,219.69,219.41,0.3126501]
[1733779186975,20.4795,219.72,219.42,10.0]
[1733779187179,20.4795,219.72,219.44,10.0]
[1733779187430,12.4462,219.72,219.55,10.0]
[1733779187566,12.4462,219.72,219.52,0.12549]
[1733779187567,20.4795,219.85,219.67,10.0]
[1733779187763,20.4795,219.85,219.63,10.0]
[1733779187962,20.4795,219.85,219.68,10.0]
[1733779188169,20.4795,219.85,219.64,10.0]
[1733779188387,18.219281,219.84,219.59,23.902374]
[1733779188563,0.12549,219.83,219.6,0.12549]
[1733779188763,18.219281,219.84,219.6,10.0]
[1733779188992,18.219281,219.84,219.68,10.0]
[1733779189272,12.4462,219.85,219.7,10.0]
[1733779189467,12.4462,219.85,219.69,0.12549]
[1733779189468,18.21342,219.94,219.75,0.12549]
[1733779189696,18.10719025,219.9,219.59,35.83747382]
[1733779189874,6.73819025,219.9,219.67,45.83747382]
[1733779190103,6.73819025,219.9,219.68,10.0]
[1733779190301,6.73819025,219.9,219.7,10.0]
[1733779190510,6.73819025,219.9,219.72,10.0]
[1733779190824,6.73819025,219.9,219.73,0.12549]
[1733779191214,6.73819025,219.9,219.85,10.0]
[1733779191400,13.0301,220.1,219.75,23.902374]
[1733779191401,13.0301,220.1,219.81,10.0]
[1733779191603,13.0301,220.1,219.76,0.68208322]
[1733779191604,18.204651,220.02,219.87,10.0]
[1733779191813,18.204651,220.02,219.82,23.902374]
[1733779192131,70.0,220.06,219.72,10.0]
[1733779192296,11.3641,219.99,219.79,10.0]
[1733779192486,29.568751,219.99,219.74,10.0]
[1733779192688,29.568751,219.99,219.78,10.0]
[1733779192919,29.568751,219.99,219.79,0.12549]
[1733779193095,18.204651,219.99,219.84,10.0]
[1733779193300,11.3619,220.04,219.82,10.0]
[1733779193998,11.3619,220.04,219.87,10.0]
[1733779194316,11.3592,220.09,219.89,10.0]
[1733779194503,11.3592,220.09,219.92,10.0]
[1733779194707,13.0301,220.1,219.95,10.0]
[1733779195224,22.55392075,220.12,219.97,10.0]
[1733779195605,22.55392075,220.12,219.95,10.0]
[1733779195995,22.55392075,220.12,219.99,10.0]
[1733779196391,22.55392075,220.12,219.99,10.12549]
[1733779196621,22.55392075,220.12,219.95,10.0]
[1733779196824,22.91865898,220.15,219.99,10.12549]
[1733779197119,22.88451346,220.19,219.99,10.12549]
[1733779197322,18.192093,220.18,219.99,34.027864]
[1733779197558,13.0301,220.21,219.99,34.027864]
[1733779197764,0.0105246,220.0,219.99,44.027864]
[1733779198048,0.0105246,220.0,219.99,34.70917083]
[1733779198620,7.521,220.26,219.99,34.70917083]
[1733779198823,7.521,220.26,220.04,10.0]
[1733779199043,18.186465,220.24,220.04,10.0]
[1733779199232,18.186465,220.24,219.92,35.83747382]
[1733779199233,0.12549,220.18,219.98,10.0]
[1733779199421,0.12549,220.15,219.89,10.0]
[1733779199620,20.0,220.13,219.87,10.0]
[1733779199817,20.0,220.13,219.93,10.0]
[1733779200027,20.0,220.17,219.95,10.0]
[1733779200227,11.3538,220.19,220.03,10.0]
[1733779200451,9.98,220.18,219.94,10.0]
[1733779200652,0.12549,220.15,219.88,10.0]
[1733779200854,0.12549,220.15,219.81,0.6818495]
[1733779200855,13.19466783,220.19,219.97,10.0]
[1733779201363,35.90226783,220.19,220.01,10.0]
[1733779201566,23.776884,220.18,219.97,10.0]
[1733779201736,23.776884,220.18,219.89,0.68178408]
[1733779201737,0.12549,220.11,219.89,10.0]
[1733779201936,227.4601212,220.2,219.8,36.51936553]